bitfinex/quotes_ETHUSD_20260304
["timestamp","ask_amount","ask_price","bid_price","bid_amount"]
[1772617621674,1.20225512,2082.9,2082.2,6.04728636]
[1772617622291,7.24089081,2082.9,2082.0,0.001]
[1772617623083,7.24089081,2082.9,2082.0,6.04828636]
[1772617623459,7.24089081,2082.9,2082.0,0.001]
[1772617623860,8.39219368,2082.9,2082.0,0.001]
[1772617624059,6.03863569,2082.7,2082.0,0.001]
[1772617624275,2.35355799,2082.9,2082.0,0.001]
[1772617624276,6.03863569,2082.5,2082.0,0.001]
[1772617624476,7.53063569,2082.5,2082.0,0.001]
[1772617625290,7.23917353,2082.4,2082.0,0.001]
[1772617625789,1.13821393,2080.1,2079.2,5.62691296]
[1772617626002,1.11493792,2080.1,2079.4,6.04728636]
[1772617626220,2.29769945,2081.8,2079.4,6.04728636]
[1772617626389,2.29769945,2080.8,2080.4,6.04728636]
[1772617626586,4.29641451,2081.1,2080.6,6.04728636]
[1772617626903,4.29641451,2081.1,2080.3,2.65519228]
[1772617626904,4.29641451,2081.5,2080.7,6.62512666]
[1772617627106,4.50029503,2081.4,2080.7,6.62512666]
[1772617627305,4.50029503,2081.4,2080.8,7.24874733]
[1772617627518,4.50029503,2081.4,2080.9,1.282]
[1772617627717,5.70142088,2081.4,2080.9,1.282]
[1772617627936,4.50029503,2081.4,2080.9,7.32928636]
[1772617628213,4.45249471,2081.4,2080.9,7.32928636]
[1772617628382,4.18587684,2082.0,2081.0,6.04728636]
[1772617628581,2.98507888,2082.0,2081.0,6.04728636]
[1772617629315,4.18585326,2082.0,2081.2,6.04728636]
[1772617630101,4.18585326,2082.0,2081.2,7.32928636]
[1772617630326,4.18585326,2082.0,2081.2,6.04728636]
[1772617630530,4.18585326,2082.0,2081.1,1.282]
[1772617630908,4.18585326,2082.0,2080.8,1.282]
[1772617631108,4.18585326,2082.0,2080.9,6.04728636]
[1772617631345,4.18585326,2082.0,2080.9,7.24865865]
[1772617632336,1.20077438,2082.0,2080.9,7.24865865]
[1772617632503,7.23941007,2082.0,2081.4,0.001]
[1772617632707,1.20077438,2082.0,2081.4,0.001]
[1772617633535,4.80307396,2082.2,2081.4,0.001]
[1772617633717,2.04411462,2082.1,2081.4,0.001]
[1772617634104,2.04411462,2082.1,2081.1,0.001]
[1772617634303,2.04411462,2082.1,2081.2,1.281]
[1772617634635,2.04411462,2082.1,2081.2,7.32828636]
[1772617635516,1.20076849,2082.0,2081.2,6.04728636]
[1772617635716,2.50884185,2082.0,2081.3,1.281]
[1772617636323,2.50884185,2082.0,2081.3,7.32828636]
[1772617636632,1.20075201,2082.1,2081.3,6.04728636]
[1772617636810,1.20075201,2082.1,2081.4,7.32828636]
[1772617637134,1.20075201,2082.1,2081.4,6.04728636]
[1772617637336,1.20075201,2082.1,2081.5,1.281]
[1772617637749,4.80276278,2082.2,2081.5,1.281]
[1772617638542,4.80276278,2082.2,2081.6,1.281]
[1772617638850,4.80276278,2082.2,2081.5,1.281]
[1772617639341,8.88228555,2082.1,2081.1,5.94274825]
[1772617639649,2.86286778,2082.0,2081.2,1.281]
[1772617639826,1.20082616,2081.9,2081.3,1.281]
[1772617640450,1.20082616,2081.9,2081.3,7.22274825]
[1772617641031,1.20080974,2082.0,2081.3,7.22274825]
[1772617641245,4.80266034,2082.2,2081.3,7.22274825]
[1772617642124,1.20065315,2082.2,2081.4,6.47006588]
[1772617642313,1.20065315,2082.2,2081.4,7.75006588]
[1772617642713,1.20065315,2082.2,2081.4,6.47006588]
[1772617642940,1.20065315,2082.2,2081.5,1.28]
[1772617643144,1.20065315,2082.2,2081.4,6.47006588]
[1772617643440,1.20065315,2082.2,2081.5,1.28]
[1772617643636,2.30870609,2082.3,2081.5,7.75006588]
[1772617643837,1.10807336,2082.3,2081.5,7.75006588]
[1772617644139,0.002,2082.7,2081.7,1.20094153]
[1772617644338,0.002,2082.7,2081.8,6.47006588]
[1772617645522,0.002,2082.7,2082.0,6.47006588]
[1772617645715,0.002,2083.1,2082.3,6.47006588]
[1772617645915,0.002,2083.2,2082.2,2.7406763]
[1772617645916,0.002,2083.2,2082.4,6.47006588]
[1772617646123,0.002,2083.2,2082.6,6.47006588]
[1772617646324,0.002,2083.2,2082.8,6.47006588]
[1772617646550,0.002,2083.2,2083.0,6.47006588]
[1772617646853,0.002,2083.4,2083.0,6.47006588]
[1772617647654,0.002,2083.4,2083.1,1.28]
[1772617647835,0.002,2083.4,2083.0,1.28]
[1772617648348,0.002,2083.4,2083.1,1.28]
[1772617648538,0.002,2083.4,2083.1,7.75006588]
[1772617649220,0.002,2083.4,2082.9,1.28]
[1772617649420,0.002,2083.4,2082.8,0.001]
[1772617649732,6.06771026,2083.4,2082.8,1.281]
[1772617650130,0.002,2083.9,2082.8,6.47106588]
[1772617650753,0.002,2084.0,2082.9,6.47006588]
[1772617651074,0.002,2084.0,2083.1,6.47006588]
[1772617651421,0.002,2084.0,2082.8,0.001]
[1772617651422,0.002,2084.0,2083.3,6.47006588]
[1772617651622,0.002,2084.0,2083.4,1.28]
[1772617652444,0.002,2084.0,2083.3,6.47006588]
[1772617652752,0.002,2084.0,2083.4,1.28]
[1772617653151,0.002,2084.0,2083.0,6.47006588]
[1772617653339,6.06771026,2084.0,2082.8,0.001]
[1772617653656,6.06771026,2084.0,2082.9,1.28]
[1772617653824,6.06571026,2083.8,2082.8,1.281]
[1772617654025,6.06571026,2083.8,2082.8,0.001]
[1772617654529,1.19978883,2083.7,2082.8,1.281]
[1772617655147,1.19978883,2083.7,2082.9,6.47006588]
[1772617655348,4.79915534,2083.9,2082.9,6.47006588]
[1772617655349,1.19967368,2083.9,2082.9,6.47006588]
[1772617656344,1.19967368,2083.9,2083.0,1.28]
[1772617656556,0.002,2084.0,2083.1,1.20013441]
[1772617656757,0.002,2084.0,2083.2,1.28]
[1772617658532,0.002,2084.0,2083.2,7.75006588]
[1772617659059,0.002,2084.0,2083.3,1.28]
[1772617659457,6.06771026,2084.8,2083.5,6.47006588]
[1772617659657,1.19927084,2084.6,2083.5,6.47006588]
[1772617659857,1.19927084,2084.6,2083.6,6.47006588]
[1772617661060,0.002,2084.3,2083.8,6.47006588]
[1772617661253,0.002,2084.3,2084.0,6.47006588]
[1772617661425,0.002,2084.7,2084.0,6.47006588]
[1772617661633,1.52655055,2084.9,2083.9,1.28]
[1772617661634,0.002,2084.9,2084.3,6.47006588]
[1772617662729,0.002,2085.0,2084.2,6.47006588]
[1772617662960,0.002,2085.0,2084.4,6.47006588]
[1772617663159,0.002,2085.0,2084.6,6.47006588]
[1772617663361,0.002,2085.2,2084.6,6.47006588]
[1772617663529,0.002,2085.2,2084.6,6.47106588]
[1772617664747,4.7966234,2085.7,2084.6,6.47106588]
[1772617664748,0.002,2085.7,2084.7,6.47006588]
[1772617664948,0.002,2085.7,2084.9,6.47006588]
[1772617665143,0.002,2085.7,2084.8,1.19915579]
[1772617665144,0.002,2085.9,2085.1,6.47006588]
[1772617668539,0.002,2085.9,2085.0,1.279]
[1772617668768,6.45515486,2085.9,2084.7,8.96953822]
[1772617669541,1.19858088,2085.8,2084.7,8.96953822]
[1772617670045,6.45315486,2085.6,2084.6,0.001]
[1772617670947,6.45315486,2085.3,2084.2,0.001]
[1772617671644,6.45315486,2085.1,2084.2,0.001]
[1772617671849,6.45315486,2084.9,2084.2,0.001]
[1772617672068,6.45315486,2084.9,2083.5,8.99892656]
[1772617672270,6.45315486,2084.9,2083.3,1.19998503]
[1772617672487,6.45315486,2084.7,2083.5,0.001]
[1772617672649,6.45315486,2084.5,2083.5,0.001]
[1772617673168,7.93815486,2084.4,2083.5,0.001]
[1772617673778,6.45315486,2084.2,2083.5,0.001]
[1772617674750,1.19944345,2084.3,2083.5,0.001]
[1772617675461,1.19944345,2084.3,2083.5,6.49232595]
[1772617675663,1.19921331,2084.7,2083.6,1.19984641]
[1772617675862,1.19921331,2084.7,2083.6,7.69117236]
[1772617677774,4.79685326,2084.8,2083.6,7.69117236]
[1772617678455,6.45315486,2084.7,2083.5,1.2008941]
[1772617679190,7.93715486,2084.7,2083.5,7.69222005]
[1772617679885,7.6524257,2084.6,2083.5,7.69222005]
[1772617680900,4.79685326,2084.8,2083.5,7.69222005]
[1772617680901,4.79667799,2084.8,2083.5,7.69222005]
[1772617681191,1.19904076,2085.0,2083.5,7.69222005]
[1772617681781,0.002,2085.1,2083.7,6.49132595]
[1772617681982,0.002,2085.1,2083.9,6.49132595]
[1772617683289,6.45515486,2085.1,2083.9,6.49132595]
[1772617683678,0.002,2085.1,2084.0,1.19961612]
[1772617683881,0.002,2085.1,2084.1,6.49132595]
[1772617685101,6.45515486,2085.1,2084.1,6.49132595]
[1772617685490,6.45515486,2085.1,2084.1,6.49232595]
[1772617685694,0.002,2085.1,2084.1,6.49232595]
[1772617686008,0.002,2085.1,2084.3,6.49132595]
[1772617686630,0.002,2085.1,2084.5,6.49132595]
[1772617687402,0.002,2085.1,2084.4,1.279]
[1772617688007,0.002,2085.1,2084.5,1.19932837]
[1772617688182,0.002,2085.1,2084.5,7.69065432]
[1772617688783,0.002,2085.2,2084.6,6.49132595]
[1772617689499,0.002,2085.3,2084.8,6.49132595]
[1772617690009,0.002,2085.3,2084.9,7.77032595]
[1772617690211,0.002,2085.3,2085.0,1.19904076]
[1772617690414,0.002,2085.6,2085.0,7.69036671]
[1772617690893,0.002,2085.6,2084.9,2.4790665]
[1772617691297,0.002,2085.6,2084.9,1.28]
[1772617691511,0.002,2085.6,2084.9,2.47909668]
[1772617692080,0.002,2085.6,2084.9,2.47909773]
[1772617692285,1.19875329,2085.5,2084.9,2.47909773]
[1772617693190,1.20074013,2085.6,2084.9,2.47909773]
[1772617693387,7.65389499,2085.6,2084.9,0.001]
[1772617693746,7.65389499,2085.6,2084.9,1.20008519]
[1772617693916,1.20069732,2085.6,2084.9,7.69141114]
[1772617694090,0.002,2085.6,2084.9,7.69141114]
[1772617695000,0.002,2085.6,2085.1,6.49132595]
[1772617695201,0.002,2085.7,2085.2,7.77132595]
[1772617696593,0.002,2085.7,2085.3,1.19886826]
[1772617697610,0.002,2085.7,2085.2,2.47889732]
[1772617697911,0.002,2085.4,2085.2,1.28]
[1772617698110,0.002,2085.4,2085.2,2.4789225]
[1772617698418,0.002,2085.4,2085.0,7.69034081]
[1772617699015,0.002,2085.4,2085.0,6.49132595]
[1772617699212,0.002,2085.4,2084.9,0.001]
[1772617699213,6.28005515,2085.4,2084.9,0.001]
[1772617699627,6.28005515,2085.4,2084.5,0.001]
[1772617700706,6.27805515,2085.2,2084.5,0.001]
[1772617701725,6.27805515,2085.2,2083.6,0.001]
[1772617702035,2.67786826,2085.3,2083.6,0.001]
[1772617702036,6.05830926,2084.3,2083.6,0.001]
[1772617702325,6.05830926,2084.3,2083.4,1.19995605]
[1772617702532,6.05830926,2084.3,2083.6,0.001]
[1772617702735,1.19945886,2084.3,2083.6,0.001]
[1772617703035,1.19945886,2084.3,2083.3,5.88125998]
[1772617703195,1.19945886,2084.3,2083.6,0.001]
[1772617704249,7.25776812,2084.3,2083.6,0.001]
[1772617704528,7.25776812,2084.3,2083.3,0.001]
[1772617704740,7.25776812,2084.3,2083.5,0.002]
[1772617704892,7.25776812,2084.3,2083.5,0.001]
[1772617705094,6.05830926,2084.1,2083.1,0.001]
[1772617705321,6.05830926,2083.7,2083.1,0.001]
[1772617705723,1.479,2084.0,2083.1,0.001]
[1772617705924,2.85319103,2083.9,2083.1,0.001]
[1772617706301,6.05830926,2084.1,2083.2,0.001]
[1772617706624,6.05830926,2084.1,2083.0,0.001]
[1772617706812,1.19961612,2084.0,2083.0,5.88125998]
[1772617707921,10.85677375,2084.1,2083.0,5.88125998]
[1772617707922,1.19959697,2084.1,2083.0,5.88125998]
[1772617708839,6.27723424,2084.3,2083.1,1.20013441]
[1772617708840,7.53730926,2084.3,2083.1,1.20013441]
[1772617709452,7.53730926,2084.3,2083.2,5.88125998]
[1772617709625,6.05830926,2084.3,2083.2,5.88125998]
[1772617709943,1.19938591,2084.4,2083.2,5.88125998]
[1772617710141,1.19938591,2084.4,2083.7,0.001]
[1772617710850,1.19944345,2084.3,2083.8,0.001]
[1772617711719,10.85608309,2084.4,2083.8,0.001]
[1772617711720,7.25752257,2084.7,2083.8,0.001]
[1772617711949,1.04981405,2084.6,2083.8,5.88125998]
[1772617712249,1.19912575,2084.9,2083.8,5.88125998]
[1772617712448,1.19892576,2085.2,2084.0,5.88025998]
[1772617714328,1.19892576,2085.2,2084.1,1.19955856]
[1772617714652,1.19892576,2085.2,2084.1,7.07981854]
[1772617714848,1.19892576,2085.2,2084.1,7.08081854]
[1772617716441,0.002,2085.4,2084.4,7.07964589]
[1772617716646,0.002,2085.4,2084.4,8.35364589]
[1772617716844,0.002,2085.4,2084.5,5.88025998]
[1772617717144,0.002,2085.4,2084.5,5.88125998]
[1772617718428,0.002,2085.4,2084.5,7.0805875]
[1772617718619,0.002,2085.4,2084.5,1.20032752]
[1772617719026,6.05830926,2085.3,2084.5,0.001]
[1772617720414,1.19892576,2085.2,2084.5,0.001]
[1772617721425,1.19888825,2085.3,2084.5,0.001]
[1772617722045,1.19888825,2085.3,2084.5,7.15825998]
[1772617722242,1.20085242,2085.4,2084.5,7.15825998]
[1772617722637,0.002,2085.4,2084.6,7.07953082]
[1772617723149,0.002,2085.1,2084.6,7.07953082]
[1772617723355,0.002,2085.4,2084.7,5.88125998]
[1772617723657,0.002,2085.3,2084.7,5.88125998]
[1772617723856,0.002,2085.4,2084.7,5.88125998]
[1772617724255,1e-08,2085.6,2084.8,5.88025998]
[1772617724663,1e-08,2085.6,2084.9,1.20009827]
[1772617725558,1e-08,2085.6,2084.9,7.08035825]
[1772617726654,1e-08,2085.6,2085.0,1.278]
[1772617726857,1e-08,2085.6,2085.1,1.19898326]
[1772617727266,1e-08,2085.6,2085.2,0.001]
[1772617729459,1e-08,2085.6,2085.0,1.278]
[1772617729767,1e-08,2085.6,2085.0,8.47038769]
[1772617730069,1e-08,2085.6,2085.0,8.47238769]
[1772617731040,1e-08,2085.6,2085.0,2.48003287]
[1772617731509,1e-08,2085.6,2085.0,2.48004038]
[1772617732281,1e-08,2085.6,2085.0,2.47904038]
[1772617733189,1e-08,2085.6,2085.1,5.99235482]
[1772617733383,0.002,2085.7,2085.2,5.99235482]
[1772617735486,0.002,2085.7,2085.3,1.19886826]
[1772617735827,0.002,2085.4,2085.3,1.19886826]
[1772617736035,0.002,2085.7,2085.3,1.19886826]
[1772617736329,0.002,2085.9,2085.4,1.282]
[1772617736620,0.002,2085.9,2085.4,7.27535482]
[1772617738083,0.002,2085.9,2085.5,1.19875329]
[1772617738320,0.002,2085.9,2085.4,2.48180356]
[1772617738523,0.002,2085.9,2085.4,1.283]
[1772617738696,0.002,2085.9,2085.4,2.48180406]
[1772617738941,0.002,2085.9,2085.4,1.283]
[1772617739413,0.002,2085.9,2085.4,0.001]
[1772617739625,0.002,2085.9,2085.3,0.001]
[1772617739626,5.8998911,2085.9,2085.3,0.001]
[1772617739793,5.8978911,2085.7,2085.2,0.001]
[1772617739975,5.45303268,2085.8,2085.2,1.19991141]
[1772617739976,2.59667248,2085.8,2085.2,1.19991141]
[1772617740178,1.20052341,2085.9,2085.2,0.001]
[1772617741117,7.09841451,2085.9,2085.2,0.001]
[1772617742081,0.002,2085.9,2085.4,5.99235482]
[1772617742287,0.002,2085.9,2085.2,4.79647307]
[1772617742288,5.8998911,2085.9,2085.2,0.001]
[1772617742509,0.002,2085.9,2085.2,7.19226573]
[1772617743097,5.8998911,2085.9,2085.2,0.001]
[1772617743415,5.8978911,2085.7,2085.2,0.001]
[1772617744118,1.19869581,2085.6,2085.2,0.001]
[1772617745218,7.09658691,2085.6,2085.0,0.001]
[1772617745713,8.76293364,2085.5,2085.0,0.001]
[1772617745913,5.8978911,2085.5,2085.0,0.001]
[1772617746122,1.19881077,2085.4,2085.0,0.001]
[1772617746286,7.09670187,2085.4,2085.0,0.001]
[1772617746491,2.86537722,2085.3,2085.0,0.001]
[1772617746690,8.76326832,2085.3,2085.0,0.001]
[1772617746924,5.8978911,2085.3,2084.7,0.001]
[1772617747109,5.8978911,2085.1,2084.2,1.286]
[1772617747406,2.86576207,2085.2,2084.2,1.286]
[1772617747407,5.8978911,2084.9,2084.2,1.286]
[1772617747606,5.8978911,2084.7,2083.9,1.19964426]
[1772617748005,5.8978911,2084.7,2083.9,7.19199908]
[1772617748216,1.19927084,2084.6,2083.9,7.19199908]
[1772617748606,1.19924895,2084.7,2083.9,7.19199908]
[1772617749306,10.69442361,2084.9,2083.9,7.19199908]
[1772617750498,10.69442361,2084.9,2083.8,6.08471605]
[1772617750499,5.8978911,2084.8,2083.8,2.48567641]
[1772617751222,5.8978911,2085.1,2083.9,5.99235482]
[1772617751431,7.09673239,2085.4,2084.1,5.99235482]
[1772617751623,7.09673239,2085.4,2084.2,1.287]
[1772617751833,5.8978911,2085.2,2084.2,1.287]
[1772617752206,7.09693186,2085.0,2084.2,2.48648396]
[1772617752400,1.1989629,2085.2,2084.3,5.99235482]
[1772617752720,1.1989629,2085.2,2084.3,7.27935482]
[1772617752923,1.19884643,2085.4,2084.3,5.99235482]
[1772617753226,4.79485635,2085.6,2084.5,5.99235482]
[1772617753440,1.19869581,2085.6,2084.5,5.99235482]
[1772617754223,5.8978911,2085.6,2084.6,1.19927084]
[1772617754731,5.8978911,2085.6,2084.6,7.19162566]
[1772617755408,5.8978911,2085.6,2084.6,7.28035482]
[1772617755733,5.8978911,2085.6,2084.6,1.288]
[1772617756939,5.8978911,2085.4,2084.6,1.288]
[1772617757594,5.8978911,2085.4,2084.4,1.19934207]
[1772617757991,5.8978911,2085.2,2084.4,1.19934207]
[1772617759629,4.79550168,2085.3,2084.3,6.35153937]
[1772617760225,4.79550168,2085.3,2084.6,0.001]
[1772617760428,10.94813742,2085.3,2084.6,0.001]
[1772617761004,6.15263574,2085.2,2084.6,0.001]
[1772617761529,1.19898326,2085.1,2084.6,0.001]
[1772617762545,1.19881077,2085.4,2084.6,6.31834475]
[1772617763047,7.57086731,2085.4,2084.6,0.001]
[1772617763431,7.57086731,2085.4,2084.6,6.31834475]
[1772617763634,7.57086731,2085.4,2084.7,1.19921331]
[1772617764858,7.57086731,2085.4,2084.6,7.51760952]
[1772617765523,7.57086731,2085.4,2084.6,8.80560952]
[1772617765755,1.19881077,2085.4,2084.6,8.80560952]
[1772617766055,1.19881077,2085.4,2084.7,6.31734475]
[1772617768155,6.37205654,2085.4,2084.6,1.20026797]
[1772617768748,6.37205654,2085.4,2084.6,2.48826797]
[1772617770530,1.19886826,2085.3,2084.6,2.48826797]
[1772617770734,6.37205654,2085.1,2084.6,0.001]
[1772617772059,0.002,2085.2,2084.6,7.51759553]
[1772617772564,0.002,2085.2,2084.6,7.51761048]
[1772617772739,0.002,2085.2,2084.6,7.51761414]
[1772617773156,0.002,2085.2,2084.6,6.31834475]
[1772617773352,0.002,2085.2,2084.6,7.51761148]
[1772617773747,0.002,2085.2,2084.6,0.001]
[1772617774268,0.002,2085.2,2084.6,1.20026449]
[1772617774640,0.002,2085.2,2084.6,0.001]
[1772617774841,0.002,2085.2,2084.6,6.31834475]
[1772617775639,0.002,2085.2,2084.6,7.60734475]
[1772617776690,1.19898326,2085.1,2084.6,0.001]
[1772617776876,1.19898326,2085.1,2084.6,1.20026824]
[1772617777561,1.19898326,2085.1,2084.6,1.20026117]
[1772617777976,0.002,2085.2,2084.6,7.51760592]
[1772617778182,0.002,2085.4,2084.8,6.31734475]
[1772617778753,0.002,2085.4,2085.0,6.31734475]
[1772617779037,0.002,2085.4,2084.7,7.60634475]
[1772617779287,6.37405654,2085.4,2084.6,0.001]
[1772617779496,6.37405654,2085.4,2084.6,1.20027008]
[1772617779655,6.37405654,2085.4,2084.6,0.001]
[1772617779994,2.86952792,2085.3,2084.6,0.001]
[1772617780170,2.86952792,2085.3,2084.6,7.51761014]
[1772617780557,0.002,2085.4,2084.6,7.51761014]
[1772617781291,6.37205654,2085.3,2084.6,0.001]
[1772617781467,6.37205654,2085.3,2084.6,1.20025958]
[1772617781468,2.87170473,2085.2,2084.6,1.20025958]
[1772617782190,0.002,2085.4,2084.6,7.51760433]
[1772617783870,0.002,2085.4,2084.8,0.001]
[1772617784069,0.002,2085.1,2084.8,6.31834475]
[1772617784470,0.002,2085.1,2084.8,7.60934475]
[1772617784665,0.002,2085.1,2084.8,1.292]
[1772617784990,0.002,2085.1,2084.8,7.60934475]
[1772617785290,0.002,2085.1,2084.8,8.808445]
[1772617785592,0.002,2085.1,2084.8,2.49115316]
[1772617785896,0.002,2085.1,2084.6,1.20026072]
[1772617786194,0.002,2085.1,2084.6,0.001]
[1772617787266,7.5730398,2085.1,2084.6,0.001]
[1772617787789,9.24427609,2085.0,2084.5,0.001]
[1772617787996,9.24427609,2084.9,2084.5,0.001]
[1772617788164,6.37205654,2084.9,2084.5,0.001]
[1772617788682,2.87202513,2084.8,2084.3,0.001]
[1772617788871,8.9584381,2084.8,2084.3,0.001]
[1772617789069,2.87202513,2084.7,2084.3,0.001]
[1772617789395,6.08641297,2084.8,2084.3,0.001]
[1772617790494,7.28562628,2084.7,2084.3,0.001]
[1772617790794,1.19904076,2085.0,2084.3,5.7929733]
[1772617792401,0.002,2085.1,2084.4,6.99135921]
[1772617792580,6.08841297,2085.1,2084.3,0.001]
[1772617792786,6.08641297,2084.9,2084.3,0.001]
[1772617793395,0.002,2085.1,2084.3,6.99240085]
[1772617793802,0.002,2085.1,2084.5,5.7919733]
[1772617794309,1.20098326,2085.1,2084.5,8.28425041]
[1772617795405,7.28739623,2085.1,2084.3,0.001]
[1772617795801,1.20098326,2085.1,2084.3,6.9923685]
[1772617796308,0.002,2085.1,2084.3,8.2853685]
[1772617797194,0.002,2085.1,2084.3,2.49343245]
[1772617797195,8.95665793,2085.1,2084.3,2.49343245]
[1772617797388,6.08841297,2085.1,2084.3,2.49343245]
[1772617797607,6.08841297,2085.1,2084.3,8.28540575]
[1772617797907,0.002,2085.1,2084.4,5.7919733]
[1772617798091,0.002,2085.1,2084.5,7.0859733]
[1772617798606,0.002,2085.1,2084.6,1.19927084]
[1772617798913,0.002,2085.1,2084.6,1.20027084]
[1772617799088,0.002,2084.9,2084.6,1.20027084]
[1772617799613,0.002,2084.9,2084.6,6.99224414]
[1772617799808,0.002,2084.9,2084.6,6.99024414]
[1772617800200,0.002,2084.9,2084.6,1.19827084]
[1772617800511,0.002,2084.9,2084.6,0.001]
[1772617800710,6.08841297,2084.9,2084.4,0.001]
[1772617800919,6.08841297,2084.9,2083.8,1.19972442]
[1772617800920,6.08641297,2084.7,2083.8,1.19972442]
[1772617801129,6.08641297,2084.7,2083.7,8.28672489]
[1772617801712,6.08641297,2084.7,2083.7,7.0869733]
[1772617802016,6.08741297,2084.8,2083.9,1.19964246]
[1772617802318,6.08741297,2084.8,2083.8,1.19969092]
[1772617802609,7.28562628,2084.7,2083.7,8.28672735]
[1772617802822,8.95377059,2084.6,2083.7,8.28672735]
[1772617803010,6.08641297,2084.6,2083.7,8.28672735]
[1772617803706,1.19921331,2084.7,2083.7,8.28672735]
[1772617803912,7.28562628,2084.7,2083.7,8.28672735]
[1772617804113,6.08641297,2084.6,2083.7,8.28672735]
[1772617804719,6.08641297,2084.4,2083.7,0.001]
[1772617805025,6.08641297,2084.2,2083.5,0.001]
[1772617805195,6.08641297,2084.0,2083.5,0.001]
[1772617806931,1.19967368,2083.9,2083.5,0.001]
[1772617807598,4.79869475,2084.0,2083.5,0.001]
[1772617807599,1.19962987,2084.0,2083.5,0.001]
[1772617808725,12.37119474,2084.3,2083.5,1.200904]
[1772617808726,1.199501,2084.2,2083.5,1.200904]
[1772617808927,1.19946915,2084.3,2083.5,6.9928773]
[1772617809728,0.001,2084.8,2083.5,6.9928773]
[1772617809930,0.001,2084.8,2083.9,5.7919733]
[1772617810131,1.20101564,2085.1,2084.1,5.7919733]
[1772617810433,0.002,2085.1,2084.1,5.7919733]
[1772617810602,0.002,2085.1,2084.3,5.7919733]
[1772617810802,0.002,2085.1,2084.4,6.99135921]
[1772617811631,0.001,2085.2,2084.5,5.7919733]
[1772617812810,0.001,2085.2,2084.6,1.19927084]
[1772617814752,0.001,2085.2,2084.6,5.7919733]
[1772617814952,0.001,2085.2,2084.7,6.99118661]
[1772617816031,0.002,2085.3,2084.7,6.99118661]
[1772617817143,0.002,2085.4,2084.8,5.7919733]
[1772617817545,0.002,2085.6,2084.8,5.7919733]
[1772617819027,0.002,2085.6,2084.9,1.19909827]
[1772617819232,0.002,2085.6,2085.0,5.37170495]
[1772617821247,0.002,2085.6,2085.0,6.5707273]
[1772617821456,0.002,2085.6,2085.0,2.49502235]
[1772617821960,0.002,2085.6,2085.0,1.296]
[1772617822250,0.002,2085.6,2085.0,2.49502865]
[1772617822421,0.002,2085.6,2085.1,6.01688125]
[1772617822824,0.002,2085.7,2085.1,6.01688125]
[1772617823023,0.002,2085.4,2085.1,6.01688125]
[1772617823439,0.002,2085.4,2085.2,1.19892576]
[1772617823753,0.002,2085.4,2085.2,7.21580701]
[1772617824049,0.002,2085.4,2085.2,6.01688125]
[1772617824768,0.002,2085.4,2085.1,1.19893927]
[1772617824769,0.002,2085.4,2085.0,2.49599435]
[1772617829462,0.002,2085.4,2085.0,8.5128756]
[1772617829662,0.002,2085.4,2085.1,6.01688125]
[1772617829858,0.002,2085.4,2085.2,1.19892576]
[1772617830374,0.002,2085.4,2085.1,7.21581923]
[1772617831574,0.002,2085.4,2085.1,1.19893798]
[1772617832678,0.002,2085.4,2085.2,1.302]
[1772617834677,0.002,2085.9,2085.3,7.21574951]
[1772617835275,0.002,2085.9,2085.4,6.01688125]
[1772617835578,0.002,2085.6,2085.4,6.01688125]
[1772617835882,0.001,2085.9,2085.4,6.01688125]
[1772617836686,0.002,2086.1,2085.7,1.19863834]
[1772617836886,0.002,2086.1,2085.8,1.305]
[1772617837968,0.33555502,2086.4,2085.8,7.32188125]
[1772617838173,1.53379622,2086.4,2085.8,7.32188125]
[1772617838561,1.53379622,2086.4,2085.8,1.305]
[1772617838762,7.62832347,2086.4,2085.8,1.305]
[1772617839286,7.62832347,2086.4,2085.8,2.50355246]
[1772617839660,0.33555502,2086.4,2085.8,1.305]
[1772617839882,1.53379783,2086.4,2085.8,8.52044927]
[1772617840587,1.53379783,2086.4,2085.8,2.50357979]
[1772617841285,1.53379783,2086.4,2085.8,1.305]
[1772617841589,1.53379783,2086.4,2085.8,2.50357154]
[1772617841792,1.53379783,2086.4,2085.8,8.52045279]
[1772617841989,7.62832508,2086.4,2085.8,1.305]
[1772617842163,6.09452725,2086.3,2085.6,1.1986538]
[1772617842361,6.09452725,2086.3,2085.7,1.307]
[1772617842583,1.53379783,2086.4,2085.7,7.32388125]
[1772617843486,7.29287831,2086.2,2085.5,0.001]
[1772617847923,0.002,2086.0,2085.5,0.001]
[1772617848780,5.71775139,2086.0,2085.5,0.001]
[1772617849709,1.20051355,2086.0,2085.5,1.19975329]
[1772617851014,1.20048461,2086.0,2085.5,1.19975329]
[1772617851502,0.002,2086.0,2085.5,6.96734904]
[1772617851717,0.002,2086.0,2085.7,1.19863834]
[1772617851925,0.002,2086.0,2085.6,6.9672476]
[1772617852127,0.002,2086.0,2085.6,5.76859575]
[1772617852326,0.002,2086.0,2085.6,0.001]
[1772617857623,0.002,2086.0,2085.6,5.76859575]
[1772617858238,0.002,2086.0,2085.6,0.001]
[1772617859333,5.71575139,2085.9,2085.6,0.001]
[1772617859650,1.20046596,2086.0,2085.6,0.001]
[1772617859853,0.002,2086.0,2085.6,0.001]
[1772617860545,0.002,2086.0,2085.7,0.001]
[1772617860857,0.002,2085.9,2085.7,0.001]
[1772617861033,5.71775139,2085.9,2085.4,0.001]
[1772617861232,5.71775139,2085.9,2085.2,2.51389161]
[1772617861441,5.71575139,2085.7,2085.2,2.51389161]
[1772617861640,5.71575139,2085.7,2085.2,2.51489161]
[1772617862159,0.002,2085.9,2085.2,8.28248736]
[1772617862365,0.002,2085.9,2085.3,5.76759575]
[1772617862884,1.20042811,2086.1,2085.3,5.76759575]
[1772617863657,0.002,2086.1,2085.5,5.76759575]
[1772617863848,0.002,2086.1,2085.7,5.76759575]
[1772617864053,5.71775139,2086.1,2085.3,1.19882788]
[1772617865672,6.91618967,2086.1,2085.3,5.76759575]